bitfinex-derivatives/quotes_BNBF0:USTF0_20260110
["timestamp","ask_amount","ask_price","bid_price","bid_amount"]
[1768058696226,0.19179154,907.37,905.89,1.09299704]
[1768058697330,0.19179154,907.37,905.9,1.09299704]
[1768058698027,0.19179154,907.37,905.93,1.09299704]
[1768058698229,0.19179154,907.37,905.92,1.09299704]
[1768058698430,0.19179154,907.37,905.93,1.09299704]
[1768058698930,2.7486179,908.58,906.13,1.09299704]
[1768058699130,0.19178414,907.5,906.14,1.09299704]
[1768058699333,0.19178414,907.5,905.98,1.63949557]
[1768058699334,2.884936,908.12,906.13,1.09299704]
[1768058699531,2.884936,908.12,906.17,1.09299704]
[1768058699735,0.19174029,907.71,906.17,1.09299704]
[1768058700137,0.19174029,907.71,906.18,1.09299704]
[1768058701237,0.19174029,907.71,906.23,1.09299704]
[1768058701738,0.19174029,907.71,906.2,1.09299704]
[1768058702235,0.19174029,907.71,906.22,1.09299704]
[1768058702438,0.19174029,907.71,906.39,1.09299704]
[1768058702638,0.19174029,907.71,906.37,1.09299704]
[1768058703235,0.19174029,907.71,906.39,1.09299704]
[1768058703535,0.19174029,907.71,906.35,1.09299704]
[1768058704335,0.19174029,907.71,906.32,1.09299704]
[1768058704739,0.19174029,907.71,906.29,1.09299704]
[1768058705142,0.19174029,907.71,906.27,1.09299704]
[1768058705342,0.19174029,907.71,906.25,1.09299704]
[1768058706440,0.19174029,907.71,906.23,1.09299704]
[1768058707536,0.19174029,907.71,906.22,1.09299704]
[1768058708436,0.19174029,907.71,906.21,1.09299704]
[1768058709034,0.19174029,907.71,906.2,1.09299704]
[1768058709341,0.19174029,907.71,906.19,1.09299704]
[1768058710340,0.19174029,907.71,906.18,1.09299704]
[1768058711342,0.19174029,907.71,906.17,1.09299704]
[1768058713443,0.19174029,907.71,906.16,1.09299704]
[1768058715344,0.19174029,907.71,906.15,1.09299704]
[1768058720143,0.19174029,907.71,906.16,1.09299704]
[1768058722245,0.19174029,907.71,906.17,1.09299704]
[1768058723246,0.19174029,907.71,906.18,1.09299704]
[1768058724349,0.19174029,907.71,906.19,1.09299704]
[1768058725149,0.19174029,907.71,906.21,1.09299704]
[1768058726146,0.19174029,907.71,906.23,1.09299704]
[1768058727146,0.19174029,907.71,906.25,1.09299704]
[1768058728146,0.19174029,907.71,906.28,1.09299704]
[1768058729151,0.19174029,907.71,906.29,1.604]
[1768058729350,0.19174029,907.71,906.31,1.09299704]
[1768058731149,0.19174029,907.71,906.29,6.0253271]
[1768058731150,0.19174029,907.71,906.32,1.09299704]
[1768058732257,0.19174029,907.71,906.33,1.09299704]
[1768058733157,0.19174029,907.71,906.32,1.09299704]
[1768058733357,0.19174029,907.71,906.33,1.09299704]
[1768058734357,0.19174029,907.71,906.34,1.09299704]
[1768058735162,0.19174029,907.71,906.35,1.09299704]
[1768058736358,0.19174029,907.71,906.29,6.0253271]
[1768058736359,0.19174029,907.71,906.36,1.09299704]
[1768058737264,0.19174029,907.71,906.37,1.09299704]
[1768058738261,0.19174029,907.71,906.36,1.09299704]
[1768058738464,0.19174029,907.71,906.37,1.09299704]
[1768058739165,0.19174029,907.71,906.39,1.09299704]
[1768058740168,0.19174029,907.71,906.41,1.09299704]
[1768058741265,0.19174029,907.71,906.44,1.09299704]
[1768058741566,0.19174029,907.71,906.45,1.09299704]
[1768058742270,0.19174029,907.71,906.48,1.09299704]
[1768058743267,0.19174029,907.71,906.53,1.09299704]
[1768058744169,0.19174029,907.71,906.55,1.09299704]
[1768058746569,0.19174029,907.71,906.56,1.09299704]
[1768058749371,0.19174029,907.71,906.57,1.09299704]
[1768058754576,0.19174029,907.71,906.56,1.09299704]
[1768058764390,0.19174029,907.71,906.57,1.09299704]
[1768058773295,2.884936,908.12,906.76,1.09299704]
[1768058773496,0.19171652,907.95,906.76,1.09299704]
[1768058774197,0.19171652,907.95,906.74,1.09299704]
[1768058774899,0.19171652,907.95,906.55,1.09299704]
[1768058775197,0.19171652,907.95,906.56,1.09299704]
[1768058775399,0.19171652,907.95,906.56,3.09599704]
[1768058776297,0.19171652,907.95,906.73,1.09299704]
[1768058776598,0.19171652,907.95,906.72,1.09299704]
[1768058777097,0.19171652,907.95,906.68,1.09299704]
[1768058777300,0.19171652,907.95,906.67,1.09299704]
[1768058779402,0.19171652,907.95,906.66,1.09299704]
[1768058781702,0.19171652,907.95,906.65,1.09299704]
[1768058784303,0.19171652,907.95,906.64,1.09299704]
[1768058791409,0.19171652,907.95,906.63,1.09299704]
[1768058791807,0.19171652,907.95,906.65,1.09299704]
[1768058794010,0.19171652,907.95,906.66,1.09299704]
[1768058795314,0.19171652,907.95,906.65,1.09299704]
[1768058799320,2.7486179,909.04,906.94,1.09299704]
[1768058799519,2.7486179,909.04,907.03,1.09299704]
[1768058799716,0.19167006,908.35,907.1,1.09299704]
[1768058799918,3.0821007,908.81,907.11,1.09299704]
[1768058800219,0.1915809,908.43,907.19,1.09299704]
[1768058801222,0.1915809,908.43,907.14,1.09299704]
[1768058801422,0.1915809,908.43,907.13,1.09299704]
[1768058802221,3.0821007,908.81,907.11,1.09299704]
[1768058802423,3.0821007,908.81,907.17,1.09299704]
[1768058802720,0.19157985,908.62,907.17,1.09299704]
[1768058803227,0.19157985,908.62,907.14,1.09299704]
[1768058804328,0.19157985,908.62,907.1,1.09299704]
[1768058804928,0.19157985,908.62,907.04,1.957]
[1768058806529,0.19157985,908.62,907.21,1.09299704]
[1768058807227,0.19157985,908.62,907.18,1.09299704]
[1768058807930,0.19157985,908.62,907.19,1.09299704]
[1768058808230,0.19157985,908.62,907.16,1.09299704]
[1768058809230,3.0821007,908.81,907.13,1.09299704]
[1768058809530,0.19156139,908.78,907.13,1.09299704]
[1768058810226,0.19156139,908.78,907.04,1.957]
[1768058810227,0.19156139,908.78,907.11,1.09299704]
[1768058810428,0.19156139,908.78,907.15,1.09299704]
[1768058811332,0.19156139,908.78,907.13,1.09299704]
[1768058812328,0.19156139,908.78,907.11,1.09299704]
[1768058813228,0.19156139,908.78,907.1,1.09299704]
[1768058814229,0.19156139,908.78,907.04,1.957]
[1768058814230,0.19156139,908.78,907.09,1.09299704]
[1768058815234,0.19156139,908.78,907.04,1.957]
[1768058815235,0.19156139,908.78,907.08,1.09299704]
[1768058816333,0.19156139,908.78,907.07,1.09299704]
[1768058817031,0.19156139,908.78,907.08,1.09299704]
[1768058818232,0.19156139,908.78,907.07,1.09299704]
[1768058819235,0.19156139,908.78,907.06,1.09299704]
[1768058820233,0.19156139,908.78,907.04,1.957]
[1768058820234,0.19156139,908.78,907.07,1.09299704]
[1768058821436,0.19156139,908.78,907.06,1.09299704]
[1768058823440,0.19156139,908.78,907.05,1.09299704]
[1768058827342,0.19156139,908.78,907.06,1.09299704]
[1768058827844,0.19156139,908.78,907.07,1.09299704]
[1768058828042,0.19156139,908.78,907.04,1.957]
[1768058828043,0.19156139,908.78,907.1,1.09299704]
[1768058829045,0.19156139,908.78,907.07,1.09299704]
[1768058830246,0.19156139,908.78,907.08,1.09299704]
[1768058831247,0.19156139,908.78,907.09,1.09299704]
[1768058832349,0.19156139,908.78,907.1,1.09299704]
[1768058833351,0.19156139,908.78,907.11,1.09299704]
[1768058834248,2.7486179,910.38,907.52,1.09299704]
[1768058834454,0.19145073,909.28,907.56,1.09299704]
[1768058834652,3.16038643,909.73,907.56,1.09299704]
[1768058834952,0.19142072,909.13,907.56,1.09299704]
[1768058835153,0.19142072,909.13,907.53,1.09299704]
[1768058835651,0.19142072,909.13,907.37,1.63949557]
[1768058835652,0.19142072,909.13,907.38,1.09299704]
[1768058836153,0.19142072,909.13,907.36,1.09299704]
[1768058836452,0.19142072,909.13,907.37,1.09299704]
[1768058837349,0.19142072,909.13,907.38,1.09299704]
[1768058838052,0.19142072,909.13,907.39,1.09299704]
[1768058838253,0.19142072,909.13,907.4,1.09299704]
[1768058839254,0.19142072,909.13,907.42,1.09299704]
[1768058840250,0.19142072,909.13,907.44,1.09299704]
[1768058841256,0.19142072,909.13,907.47,1.09299704]
[1768058842252,0.19142072,909.13,907.5,1.09299704]
[1768058843256,0.19142072,909.13,907.54,1.09299704]
[1768058844258,0.19142072,909.13,907.59,1.09299704]
[1768058846253,0.19142072,909.13,907.6,1.09299704]
[1768058848261,0.19142072,909.13,907.61,1.09299704]
[1768058850261,0.19142072,909.13,907.62,1.09299704]
[1768058851161,0.19142072,909.13,907.62,5.9491055]
[1768058851362,0.19142072,909.13,907.62,4.85610846]
[1768058854462,0.19142072,909.13,907.63,1.555]
[1768058871582,0.19142072,909.13,907.62,5.9491055]
[1768058872282,0.19142072,909.13,907.63,1.09299704]
[1768058875388,0.19142072,909.13,907.64,1.09299704]
[1768058875587,0.19142072,909.13,907.64,3.27699704]
[1768058876885,0.19142072,909.13,907.64,2.184]
[1768058935627,0.19142072,909.13,907.62,4.85610846]
[1768058939030,0.19142072,909.13,907.63,2.061]
[1768058963759,0.19142072,909.13,907.66,1.09299704]
[1768058964159,0.19142072,909.13,907.65,1.09299704]
[1768058964359,0.19142072,909.13,907.67,1.09299704]
[1768058965260,0.19142072,909.13,907.66,1.09299704]
[1768058967255,0.19142072,909.13,907.62,4.85610846]
[1768058967256,0.19142072,909.13,907.65,1.09299704]
[1768058967955,0.19142072,909.13,907.66,2.406]
[1768058969161,0.19142072,909.13,907.67,1.09299704]
[1768058969359,2.7486179,910.16,907.74,1.09299704]
[1768058969563,0.19141704,909.27,907.74,1.09299704]
[1768058969863,2.9179632,909.49,907.74,1.09299704]
[1768058970063,0.19140809,909.27,907.74,1.09299704]
[1768058970264,0.19140809,909.27,907.73,1.09299704]
[1768058971161,0.19140809,909.27,907.72,1.09299704]
[1768058971359,2.9179632,909.49,907.83,1.09299704]
[1768058971566,0.19141493,909.55,907.87,1.09299704]
[1768058971766,0.19141493,909.55,907.98,1.09299704]
[1768058971964,0.19141493,909.55,907.99,1.09299704]
[1768058972165,0.19141493,909.55,907.96,1.09299704]
[1768058972366,0.19141493,909.55,907.93,1.09299704]
[1768058973365,0.19141493,909.55,907.92,1.09299704]
[1768058974168,0.19141493,909.55,907.9,1.09299704]
[1768058974369,0.19141493,909.55,907.91,1.09299704]
[1768058975067,0.19141493,909.55,907.9,1.09299704]
[1768058975264,0.19141493,909.55,907.89,1.09299704]
[1768058976164,0.19141493,909.55,907.87,1.09299704]
[1768058976363,0.19141493,909.55,907.91,1.09299704]
[1768058977166,0.19141493,909.55,907.89,1.09299704]
[1768058977370,0.19141493,909.55,907.9,1.09299704]
[1768058978170,0.19141493,909.55,907.88,1.09299704]
[1768058978465,0.19141493,909.55,907.89,1.09299704]
[1768058979368,0.19141493,909.55,907.88,1.09299704]
[1768058980171,0.19141493,909.55,907.87,1.09299704]
[1768058981571,0.19141493,909.55,907.85,1.09299704]
[1768058984269,0.19141493,909.55,907.84,1.09299704]
[1768058984570,0.19141493,909.55,907.85,1.09299704]
[1768058985070,0.19141493,909.55,907.82,1.09299704]
[1768058986868,0.19141493,909.55,907.66,3.49899704]
[1768058988175,0.19141493,909.55,907.67,1.09299704]
[1768058990275,0.19141493,909.55,907.68,1.09299704]
[1768058991276,0.19141493,909.55,907.69,1.09299704]
[1768058991873,0.19141493,909.55,907.66,2.406]
[1768058996178,0.19141493,909.55,907.73,1.09299704]
[1768058996475,0.19141493,909.55,907.75,1.09299704]
[1768058997180,0.19141493,909.55,907.76,1.09299704]
[1768058998181,0.19141493,909.55,907.78,1.09299704]
[1768058998381,0.19141493,909.55,907.8,1.09299704]
[1768058999279,0.19141493,909.55,907.82,1.09299704]
[1768059000182,0.19141493,909.55,907.83,1.09299704]
[1768059000582,0.19141493,909.55,907.88,1.09299704]
[1768059001088,0.19141493,909.55,907.9,1.09299704]
[1768059002188,0.19141493,909.55,907.91,1.09299704]
[1768059002390,0.19141493,909.55,907.94,1.09299704]
[1768059003286,0.19141493,909.55,907.95,1.09299704]
[1768059004189,0.19141493,909.55,907.96,1.09299704]
[1768059005189,0.19141493,909.55,907.97,1.09299704]
[1768059005389,0.19141493,909.55,907.96,1.09299704]
[1768059005587,0.19141493,909.55,907.94,4.21930616]
[1768059006087,0.19141493,909.55,907.95,2.204]
[1768059028210,0.19141493,909.55,907.95,3.29699704]
[1768059029210,0.19141493,909.55,907.96,1.09299704]
[1768059031116,0.19141493,909.55,907.97,1.09299704]
[1768059034917,0.19141493,909.55,908.18,1.09299704]
[1768059035117,0.19141493,909.55,908.17,1.09299704]
[1768059035817,0.19141493,909.55,908.18,1.09299704]
[1768059036021,0.19141493,909.55,908.21,1.09299704]
[1768059036220,0.19141493,909.55,908.2,1.09299704]
[1768059037222,0.19141493,909.55,908.19,1.09299704]
[1768059038017,0.19141493,909.55,908.17,1.09299704]
[1768059038221,0.19141493,909.55,908.16,1.09299704]
[1768059038621,0.19141493,909.55,908.15,1.09299704]
[1768059039123,0.19141493,909.55,908.14,1.09299704]
[1768059042122,0.19141493,909.55,907.97,1.63949557]
[1768059042123,0.19141493,909.55,908.13,1.09299704]
[1768059043626,0.19141493,909.55,908.14,1.09299704]
[1768059044228,0.19141493,909.55,908.13,1.09299704]
[1768059044428,0.19141493,909.55,908.15,1.09299704]
[1768059046229,0.19141493,909.55,908.14,1.09299704]
[1768059046926,0.19141493,909.55,908.21,1.09299704]
[1768059047127,0.19141493,909.55,908.2,1.09299704]
[1768059047625,0.19141493,909.55,908.22,1.09299704]
[1768059048226,0.19141493,909.55,908.21,1.09299704]
[1768059049225,0.19141493,909.55,908.2,1.09299704]
[1768059051127,0.19141493,909.55,908.19,1.09299704]
[1768059052128,0.19141493,909.55,908.09,1.09299704]
[1768059052531,0.19141493,909.55,908.02,1.09299704]
[1768059052831,0.19141493,909.55,907.98,1.09299704]
[1768059055131,0.19141493,909.55,907.99,1.09299704]
[1768059060840,0.19141493,909.55,908.02,1.09299704]
[1768059062141,0.19141493,909.55,908.03,1.09299704]
[1768059065842,0.19141493,909.55,908.13,1.09299704]
[1768059068344,0.19141493,909.55,908.14,1.09299704]
[1768059068849,0.19141493,909.55,908.15,2.353]
[1768059072146,0.19141493,909.55,908.15,3.44599704]
[1768059074153,0.19141493,909.55,908.16,1.09299704]
[1768059076057,0.19141493,909.55,908.15,2.353]
[1768059076058,0.19141493,909.55,908.21,1.09299704]
[1768059076255,0.19141493,909.55,908.22,1.09299704]
[1768059078159,0.19141493,909.55,908.23,1.09299704]
[1768059078360,0.19141493,909.55,908.27,1.09299704]
[1768059079059,0.19141493,909.55,908.28,1.09299704]
[1768059081456,0.19141493,909.55,908.27,1.09299704]
[1768059082957,2.7486179,910.5,908.38,1.09299704]
[1768059083154,2.7486179,910.5,908.22,1.63949557]
[1768059083155,0.19131917,909.74,908.39,1.09299704]
[1768059083360,0.19131917,909.74,908.38,1.09299704]
[1768059083560,2.7486179,910.64,908.5,1.09299704]
[1768059083860,0.19129656,909.84,908.52,1.09299704]
[1768059084059,2.7486179,910.66,908.53,1.09299704]
[1768059084257,0.19128289,910.11,908.53,1.09299704]
[1768059084457,0.19128289,910.11,908.51,1.09299704]
[1768059085057,0.19128289,910.11,908.5,1.09299704]
[1768059085360,0.19128289,910.11,908.49,1.09299704]
[1768059086458,0.19128289,910.11,908.47,1.09299704]
[1768059087364,0.19128289,910.11,908.46,1.09299704]
[1768059088362,0.19128289,910.11,908.45,1.09299704]
[1768059089363,0.19128289,910.11,908.44,1.09299704]
[1768059090363,0.19128289,910.11,908.43,1.09299704]
[1768059091462,0.19128289,910.11,908.42,1.09299704]
[1768059091963,0.19128289,910.11,908.41,1.09299704]
[1768059092163,0.19128289,910.11,908.4,1.09299704]
[1768059093464,0.19128289,910.11,908.39,1.09299704]
[1768059095369,0.19128289,910.11,908.38,1.09299704]
[1768059095569,0.19128289,910.11,908.15,2.353]
[1768059102070,0.19128289,910.11,908.15,1.09299704]
[1768059104175,0.19128289,910.11,908.16,1.09299704]
[1768059104769,0.19128289,910.11,908.17,2.311]
[1768059106471,0.19128289,910.11,908.17,3.40399704]
[1768059107177,0.19128289,910.11,908.17,2.311]
[1768059118981,0.19128289,910.11,908.18,1.09299704]
[1768059119482,0.19128289,910.11,908.19,1.09299704]
[1768059130289,0.19128289,910.11,908.2,1.09299704]
[1768059132294,0.19128289,910.11,908.21,1.09299704]
[1768059133492,0.19128289,910.11,908.22,1.09299704]
[1768059134493,0.19128289,910.11,908.23,1.09299704]
[1768059135499,0.19128289,910.11,908.24,1.09299704]
[1768059136304,0.19128289,910.11,908.25,1.09299704]
[1768059137401,0.19128289,910.11,908.26,1.09299704]
[1768059138508,0.19128289,910.11,908.35,1.09299704]
[1768059138808,0.19128289,910.11,908.49,1.09299704]
[1768059139406,0.19128289,910.11,908.33,1.63949557]
[1768059139407,0.19128289,910.11,908.58,1.09299704]
[1768059139707,0.19128289,910.11,908.65,1.09299704]
[1768059139908,0.19128289,910.11,908.71,1.09299704]
[1768059140408,0.19128289,910.11,908.64,1.09299704]
[1768059141408,0.19128289,910.11,908.62,1.09299704]
[1768059142308,0.19128289,910.11,908.6,1.09299704]
[1768059143206,0.19128289,910.11,908.59,1.09299704]
[1768059143406,0.19128289,910.11,908.58,1.09299704]
[1768059144507,0.19128289,910.11,908.56,1.09299704]
[1768059145417,0.19128289,910.11,908.55,1.09299704]
[1768059146416,0.19128289,910.11,908.54,1.09299704]
[1768059147616,0.19128289,910.11,908.53,1.09299704]
[1768059148318,0.19128289,910.11,908.52,1.09299704]
[1768059150314,0.19128289,910.11,908.51,1.09299704]
[1768059151419,0.19128289,910.11,908.5,1.09299704]
[1768059154222,0.19128289,910.11,908.5,5.30774505]
[1768059154424,0.19128289,910.11,908.5,4.21474801]
[1768059158226,0.19128289,910.11,908.51,2.253]
[1768059172437,0.19128289,910.11,908.51,3.34599704]
[1768059173335,0.19128289,910.11,908.52,1.09299704]
[1768059175340,0.19128289,910.11,908.53,1.09299704]
[1768059176537,0.19128289,910.11,908.54,1.09299704]
[1768059177442,0.19128289,910.11,908.55,1.09299704]
[1768059178342,0.19128289,910.11,908.56,1.09299704]
[1768059179444,0.19128289,910.11,908.58,1.09299704]
[1768059180346,0.19128289,910.11,908.59,1.09299704]
[1768059181343,0.19128289,910.11,908.61,1.09299704]
[1768059182343,0.19128289,910.11,908.64,1.09299704]
[1768059183345,0.19128289,910.11,908.68,1.09299704]
[1768059186753,0.19128289,910.11,908.67,1.09299704]
[1768059187851,0.19128289,910.11,908.66,1.09299704]
[1768059188454,0.19128289,910.11,908.61,1.09299704]
[1768059188754,0.19128289,910.11,908.51,3.34599704]
[1768059189350,0.19128289,910.11,908.51,2.253]
[1768059216276,0.19128289,910.11,908.5,4.21474801]
[1768059219878,0.19128289,910.11,908.51,2.327]
[1768059239492,0.19128289,910.11,908.54,1.09299704]
[1768059240692,0.19128289,910.11,908.56,1.09299704]
[1768059240992,0.19128289,910.11,908.63,1.09299704]
[1768059241190,0.19128289,910.11,908.62,1.09299704]
[1768059242394,0.19128289,910.11,908.61,1.09299704]
[1768059242593,0.19128289,910.11,908.62,1.09299704]
[1768059244191,0.19128289,910.11,908.61,1.09299704]
[1768059244894,0.19128289,910.11,908.62,1.09299704]
[1768059245095,0.19128289,910.11,908.67,1.09299704]
[1768059245295,0.19128289,910.11,908.66,1.09299704]
[1768059246091,0.19128289,910.11,908.67,1.09299704]
[1768059246391,0.19128289,910.11,908.66,1.09299704]
[1768059246597,2.7486179,911.37,909.17,1.09299704]
[1768059246797,0.19118778,910.57,909.17,1.09299704]
[1768059247093,2.7486179,911.36,909.15,1.09299704]
[1768059247292,0.1911379,910.53,909.08,1.09299704]
[1768059247795,0.1911463,910.5,909.01,1.09299704]
[1768059248196,0.1911463,910.5,908.96,1.09299704]
[1768059248392,0.1911463,910.5,908.9,1.09299704]
[1768059249093,0.1911463,910.5,908.88,1.09299704]
[1768059249397,0.1911463,910.5,908.86,1.09299704]
[1768059250195,0.1911463,910.5,908.84,1.09299704]
[1768059250894,0.1911463,910.5,908.83,1.09299704]
[1768059251094,0.1911463,910.5,908.81,1.09299704]
[1768059251395,0.1911463,910.5,908.8,1.09299704]
[1768059252198,0.1911463,910.5,908.78,1.09299704]
[1768059253198,0.1911463,910.5,908.77,1.09299704]
[1768059253399,0.1911463,910.5,908.76,1.09299704]
[1768059254196,0.1911463,910.5,908.75,1.09299704]
[1768059255400,0.1911463,910.5,908.74,1.09299704]
[1768059256208,0.1911463,910.5,908.73,1.09299704]
[1768059257310,0.1911463,910.5,908.72,1.09299704]
[1768059258711,0.1911463,910.5,908.7,1.09299704]
[1768059261313,0.1911463,910.5,908.69,1.09299704]
[1768059261614,0.1911463,910.5,908.7,1.09299704]
[1768059261810,0.1911463,910.5,908.7,2.99599704]
[1768059263211,0.1911463,910.5,908.7,1.903]
[1768059263413,0.1911463,910.5,908.7,2.99599704]
[1768059264816,0.1911463,910.5,908.7,1.903]
[1768059275326,0.1911463,910.5,908.7,2.99599704]
[1768059275527,0.1911463,910.5,908.7,7.11540328]
[1768059276328,0.1911463,910.5,908.71,1.09299704]
[1768059277327,0.1911463,910.5,908.87,1.09299704]
[1768059277530,0.1911463,910.5,908.9,1.09299704]
[1768059278331,0.1911463,910.5,908.89,1.09299704]
[1768059278628,0.1911463,910.5,908.91,1.09299704]
[1768059279431,0.1911463,910.5,908.92,1.09299704]
[1768059280331,0.1911463,910.5,908.97,1.09299704]
[1768059281531,0.1911463,910.5,908.98,1.09299704]
[1768059282433,0.1911463,910.5,909.0,1.09299704]
[1768059283130,0.1911463,910.5,908.99,1.09299704]
[1768059283331,0.1911463,910.5,909.01,1.09299704]
[1768059284333,0.1911463,910.5,909.04,1.09299704]
[1768059285238,0.1911463,910.5,909.03,1.09299704]
[1768059285436,0.1911463,910.5,909.04,1.09299704]
[1768059285935,0.1911463,910.5,909.03,1.09299704]
[1768059286135,0.1911463,910.5,909.05,1.09299704]
[1768059287136,0.1911463,910.5,909.06,1.09299704]
[1768059288239,0.1911463,910.5,909.07,1.09299704]
[1768059289137,0.1911463,910.5,909.05,1.09299704]
[1768059289431,0.1911463,910.5,909.07,1.09299704]
[1768059290237,0.1911463,910.5,909.08,1.09299704]
[1768059290540,0.1911463,910.5,909.09,1.09299704]
[1768059291241,0.1911463,910.5,909.1,1.09299704]
[1768059292436,0.1911463,910.5,909.11,1.09299704]
[1768059293338,0.1911463,910.5,909.07,1.09299704]
[1768059295743,0.1911463,910.5,909.06,1.09299704]
[1768059296845,0.1911463,910.5,909.04,1.09299704]
[1768059298147,0.1911463,910.5,908.96,1.09299704]
[1768059298442,0.1911463,910.5,908.82,1.09299704]
[1768059299244,0.1911463,910.5,908.9,1.09299704]
[1768059301350,0.1911463,910.5,908.91,1.09299704]
[1768059301644,0.1911463,910.5,908.92,1.09299704]
[1768059302348,0.1911463,910.5,908.78,1.09299704]
[1768059304248,0.1911463,910.5,908.77,1.09299704]
[1768059306249,0.1911463,910.5,908.76,1.09299704]
[1768059307951,0.1911463,910.5,908.74,1.09299704]
[1768059309349,0.1911463,910.5,908.73,1.09299704]
[1768059311253,0.1911463,910.5,908.74,1.861]
[1768059330470,0.1911463,910.5,908.75,1.09299704]
[1768059330670,0.1911463,910.5,908.76,1.09299704]
[1768059330870,0.1911463,910.5,908.78,1.09299704]
[1768059331369,0.1911463,910.5,908.79,1.09299704]
[1768059332271,0.1911463,910.5,908.8,1.09299704]
[1768059333168,0.1911463,910.5,908.81,1.09299704]
[1768059334268,0.1911463,910.5,908.82,1.09299704]
[1768059336371,0.1911463,910.5,908.83,1.09299704]
[1768059337272,0.1911463,910.5,908.84,1.09299704]
[1768059338174,0.1911463,910.5,908.85,1.09299704]
[1768059338673,0.1911463,910.5,908.93,1.09299704]
[1768059340174,0.1911463,910.5,908.94,1.09299704]
[1768059340370,0.1911463,910.5,908.93,1.09299704]
[1768059341169,0.1911463,910.5,908.94,1.09299704]
[1768059342669,0.1911463,910.5,908.93,1.09299704]
[1768059343074,0.1911463,910.5,908.92,1.09299704]
[1768059343273,0.1911463,910.5,908.91,1.09299704]
[1768059348380,0.1911463,910.5,908.9,1.09299704]
[1768059348579,2.81473541,911.45,909.25,1.09299704]
[1768059348777,0.19111743,910.94,909.36,1.09299704]
[1768059349280,0.19111743,910.94,909.33,1.09299704]
[1768059349777,0.19111743,910.94,909.34,2.649]
[1768059351880,0.19111743,910.94,909.35,1.09299704]
[1768059352479,0.19111743,910.94,909.34,2.649]
[1768059363587,2.81473541,911.45,909.34,2.649]
[1768059363791,0.19106602,911.09,909.34,2.649]
[1768059376198,0.19106602,911.09,909.34,3.74199704]
[1768059378002,0.19106602,911.09,909.34,2.649]
[1768059379402,0.19106602,911.09,909.34,3.74199704]
[1768059381403,0.19106602,911.09,909.35,1.09299704]
[1768059382405,0.19106602,911.09,909.36,1.09299704]
[1768059383408,0.19106602,911.09,909.38,1.09299704]
[1768059385106,0.19106602,911.09,909.36,1.09299704]
[1768059385903,0.19106602,911.09,909.34,2.649]
[1768059398912,0.19106602,911.09,908.97,1.09299704]
[1768059399116,0.19106602,911.09,908.96,1.09299704]
[1768059399311,0.19106602,911.09,908.76,1.09299704]
[1768059399515,0.19106602,911.09,908.66,1.09299704]
[1768059399816,0.19106602,911.09,908.64,1.09299704]
[1768059400212,0.19106602,911.09,908.63,1.09299704]
[1768059400416,0.19106602,911.09,908.61,1.09299704]
[1768059401316,0.19106602,911.09,908.58,1.09299704]
[1768059402417,0.19106602,911.09,908.59,2.321]
[1768059407818,2.7486179,911.03,908.59,2.321]
[1768059408214,2.7486179,911.02,908.59,2.321]
[1768059408616,2.7486179,911.03,908.59,2.321]
[1768059409317,2.7486179,910.82,908.59,2.321]
[1768059409820,2.7486179,910.85,908.59,2.321]
[1768059410320,2.7486179,910.89,908.59,2.321]
[1768059411318,2.7486179,910.91,908.59,2.321]
[1768059411515,0.19106602,911.09,908.59,2.321]
[1768059412021,0.19106602,911.09,908.64,1.09299704]
[1768059413118,0.19106602,911.09,908.63,1.09299704]
[1768059414321,0.19106602,911.09,908.64,1.09299704]
[1768059416020,0.19106602,911.09,908.63,1.09299704]
[1768059416320,0.19106602,911.09,908.64,1.09299704]
[1768059418323,0.19106602,911.09,908.65,1.09299704]
[1768059419426,0.19106602,911.09,908.66,1.09299704]
[1768059420220,0.19106602,911.09,908.67,1.09299704]
[1768059420927,0.19106602,911.09,908.69,1.09299704]
[1768059421321,0.19106602,911.09,908.7,1.09299704]
[1768059421622,0.19106602,911.09,908.77,1.09299704]
[1768059422424,0.19106602,911.09,908.78,1.09299704]
[1768059423324,0.19106602,911.09,908.79,1.09299704]
[1768059424024,0.19106602,911.09,908.81,1.09299704]
[1768059424229,0.19106602,911.09,908.88,1.09299704]
[1768059424430,0.19106602,911.09,908.9,1.09299704]
[1768059425325,0.19106602,911.09,908.91,1.09299704]
[1768059426227,0.19106602,911.09,908.93,1.09299704]
[1768059427430,0.19106602,911.09,908.94,1.09299704]
[1768059427931,0.19106602,911.09,908.96,1.09299704]
[1768059428128,0.19106602,911.09,908.98,1.09299704]
[1768059428432,0.19106602,911.09,909.0,1.09299704]
[1768059429328,0.19106602,911.09,909.02,1.09299704]
[1768059430431,0.19106602,911.09,909.04,1.09299704]
[1768059432130,0.19106602,911.09,909.06,1.09299704]
[1768059434333,0.19106602,911.09,909.05,1.09299704]
[1768059435035,0.19106602,911.09,909.02,1.09299704]
[1768059435335,0.19106602,911.09,909.01,1.09299704]
[1768059437332,0.19106602,911.09,909.02,1.09299704]
[1768059442142,0.19106602,911.09,909.03,1.09299704]
[1768059442442,2.7486179,911.6,909.03,1.09299704]
[1768059444539,2.7486179,911.61,909.03,1.09299704]
[1768059445342,2.7486179,911.61,909.04,1.09299704]
[1768059447946,2.7486179,911.61,909.06,1.09299704]